fUSD/lending_fUSD_20250427
["ID","MTS","AMOUNT","RATE_DAILY","PERIOD"]
[359149182,1745742596589,-633.58,0.00019722,2]
[359149183,1745742596617,-400.0,0.00019722,2]
[359149184,1745742596643,-560.79,0.00019722,2]
[359149185,1745742596671,-400.0,0.00019722,2]
[359149186,1745742596698,-3272.59,0.00019722,2]
[359149187,1745742596726,-400.0,0.00019722,2]
[359149188,1745742596752,-400.0,0.00019723,2]
[359149189,1745742596779,-400.0,0.00019723,2]
[359149190,1745742596810,-400.0,0.00019723,2]
[359149191,1745742596836,-400.0,0.00019723,2]
[359149192,1745742596862,-400.0,0.00019723,2]
[359149193,1745742596889,-408.20977924,0.00019723,2]
[359149194,1745742596917,-400.0,0.00019723,2]
[359149195,1745742596946,-409.40357973,0.00019723,2]
[359149196,1745742596974,-543.87161406,0.00019723,2]
[359149197,1745742597001,-1292.71,0.00019723,2]
[359149198,1745742597029,-422.93,0.00019723,2]
[359149199,1745742597057,-510.70629963,0.00019723,2]
[359149200,1745742597083,-411.3334875,0.00019723,2]
[359149201,1745742597109,-400.0,0.00019723,2]
[359149202,1745742597137,-447.21,0.00019723,2]
[359149203,1745742597164,-400.0,0.00019723,2]
[359149204,1745742597193,-400.0,0.00019723,2]
[359149205,1745742597221,-400.0,0.00019723,2]
[359149206,1745742597249,-400.0,0.00019723,2]
[359149207,1745742597276,-400.0,0.00019723,2]
[359149208,1745742597307,-400.0,0.00019723,2]
[359149209,1745742597334,-500.0,0.00019723,2]
[359149210,1745742597362,-400.0,0.00019723,2]
[359149211,1745742597390,-300.0,0.00019723,2]
[359149212,1745742597416,-400.0,0.00019723,2]
[359149213,1745742597446,-400.0,0.00019723,2]
[359149214,1745742597475,-400.0,0.00019723,2]
[359149215,1745742597501,-400.0,0.00019723,2]
[359149216,1745742597527,-400.0,0.00019723,2]
[359149217,1745742597554,-400.0,0.00019723,2]
[359149218,1745742597582,-400.0,0.00019723,2]
[359149219,1745742597609,-400.0,0.00019723,2]
[359149220,1745742597636,-400.0,0.00019723,2]
[359149221,1745742597663,-207.20212485,0.00019723,2]
[359149222,1745742597691,-400.0,0.00019723,2]
[359149223,1745742597717,-400.0,0.00019723,2]
[359149224,1745742597746,-400.0,0.00019723,2]
[359149225,1745742597772,-400.0,0.00019723,2]
[359149226,1745742597799,-400.0,0.00019723,2]
[359149227,1745742597825,-500.0,0.00019723,2]
[359149228,1745742597851,-400.0,0.00019723,2]
[359149229,1745742597878,-400.0,0.00019723,2]
[359149230,1745742597905,-400.0,0.00019723,2]
[359149231,1745742597931,-400.0,0.00019723,2]
[359149232,1745742597958,-360.38556526,0.00019723,2]
[359149233,1745742597986,-400.0,0.00019723,2]
[359149234,1745742598013,-400.0,0.00019723,2]
[359149235,1745742598041,-200.0,0.00019749,2]
[359149236,1745742598069,-1150.842704,0.00019792,2]
[359149237,1745742598096,-1150.842704,0.00019793,2]
[359149238,1745742598124,-1150.842704,0.00019795,2]
[359149239,1745742598151,-382.25617146,0.00019797,2]
[359149240,1745742599545,-521.48,0.00019722,2]
[359149241,1745742599554,-247.10653254,0.00019723,2]
[359149242,1745742608028,-400.0,0.00019599,2]
[359149243,1745742608057,-400.0,0.00019722,2]
[359149244,1745742608087,-480.43,0.00019722,2]
[359149245,1745742608116,-400.0,0.00019722,2]
[359149246,1745742608145,-200.0,0.00019723,2]
[359149247,1745742608177,-152.89346746,0.00019723,2]
[359149248,1745742608206,-400.0,0.00019723,2]
[359149249,1745742608232,-400.0,0.00019723,2]
[359149250,1745742608259,-400.0,0.00019723,2]
[359149251,1745742608286,-200.0,0.00019768,2]
[359149252,1745742608318,-768.58653254,0.00019797,2]
[359149253,1745742608348,-1150.842704,0.00019798,2]
[359149254,1745742608374,-219.8133028,0.00019799,2]
[359149255,1745742608400,-400.0,0.00019873,2]
[359149256,1745742608427,-1337.0,0.00019895,2]
[359149257,1745742608454,-300.0,0.00019899,2]
[359149258,1745742608482,-276.0,0.00019899,2]
[359149259,1745742608510,-1200.0,0.00019899,2]
[359149260,1745742608841,-1297.106088,0.00019792,2]
[359149261,1745742608851,-10531.7618984,0.000199,2]
[359149262,1745742618542,-401.03600526,0.00019599,2]
[359149263,1745742618569,-1174.75,0.00019722,2]
[359149264,1745742618596,-400.0,0.00019722,2]
[359149265,1745742618624,-415.04213811,0.00019722,2]
[359149266,1745742618653,-400.0,0.00019722,2]
[359149267,1745742618680,-18.34371326,0.00019723,2]
[359149268,1745742618775,-381.65628674,0.00019723,2]
[359149278,1745742631935,-303.22073978,0.00019599,2]
[359149279,1745742631944,-202.28099323,0.00019599,2]
[359149280,1745742631953,-400.0,0.00019599,2]
[359149281,1745742631963,-400.0,0.00019599,2]
[359149282,1745742631973,-112.84014708,0.00019722,2]
[359149283,1745742631984,-287.15985292,0.00019722,2]
[359149284,1745742631992,-400.0,0.00019722,2]
[359149285,1745742632002,-402.49,0.00019722,2]
[359149286,1745742632011,-400.0,0.00019722,2]
[359149287,1745742632020,-400.0,0.00019723,2]
[359149288,1745742632030,-286.68118893,0.00019723,2]
[359149319,1745742637874,-400.0,0.00019722,2]
[359149320,1745742637884,-113.31881107,0.00019723,2]
[359149321,1745742637893,-503.2,0.00019723,2]
[359149322,1745742637902,-445.34,0.00019723,2]
[359149323,1745742637911,-545.81,0.00019723,2]
[359149324,1745742637920,-257.83408972,0.00019723,2]
[359149325,1745742637930,-477.97,0.00019723,2]
[359149326,1745742637940,-1297.106088,0.00019793,2]
[359149327,1745742637949,-396.66986421,0.00019795,2]
[359149328,1745742637960,-900.43622379,0.00019795,2]
[359149329,1745742637969,-482.70984881,0.00019797,2]
[359149330,1745742637985,-814.39623919,0.00019797,2]
[359149331,1745742637994,-1297.106088,0.00019798,2]
[359149332,1745742638006,-141.3148102,0.00019799,2]
[359149562,1745742640367,-99.3665687,0.00019576,2]
[359149566,1745742640516,-57.2634313,0.00019576,2]
[359149567,1745742640526,-416.88465255,0.00019599,2]
[359149568,1745742640535,-400.0,0.00019722,2]
[359149569,1745742640545,-268.7757973,0.00019799,2]
[359149570,1745742640554,-400.0,0.00019873,2]
[359149571,1745742640563,-3994.0,0.00019895,2]
[359149573,1745742640573,-153.0,0.00019895,2]
[359149575,1745742640582,-300.0,0.00019899,2]
[359149577,1745742640591,-24969.95440839,0.000199,2]
[359149581,1745742640621,-1124.04100611,0.000199,2]
[359150606,1745742655701,-0.00059875,0.00019599,2]
[359150607,1745742655983,-418.45040006,0.00019599,2]
[359150608,1745742655992,-400.0,0.00019722,2]
[359150609,1745742656002,-400.0,0.00019722,2]
[359150610,1745742656011,-314.77832279,0.00019722,2]
[359150611,1745742657012,-85.22167721,0.00019722,2]
[359150612,1745742657024,-400.0,0.00019723,2]
[359150613,1745742657033,-41092.39907836,0.000199,2]
[359150614,1745742657051,-7643.24734212,0.000199,2]
[359150615,1745742693487,153.93,0.00019032,2]
[359150617,1745743063047,171.75,0.00015164,2]
[359150618,1745743149437,27.09,0.00018943,2]
[359150619,1745743149459,972.91,0.00018943,2]
[359150620,1745743206863,352.37,0.00017024,2]
[359150621,1745743207081,352.37,0.00019288,2]
[359150622,1745743294661,6053.70875786,0.00036986,60]
[359150623,1745743466993,1000.0,0.00036986,60]
[359150624,1745743534965,-296.83361965,0.000194,2]
[359150625,1745743542846,-401.3665687,0.000194,2]
[359150626,1745743552714,-245.72,0.000194,2]
[359150627,1745743556919,-272.15082242,0.000194,2]
[359150628,1745743562669,-629.70037261,0.000194,2]
[359150629,1745743566618,-180.60193739,0.000194,2]
[359150630,1745743569411,-158.36508478,0.000194,2]
[359150631,1745743573466,-796.09,0.000194,2]
[359150632,1745743606942,169.737325,0.000193,2]
[359150633,1745743626166,-152.16638035,0.00019399,2]
[359150634,1745743627315,152.612675,0.00019301,2]
[359150635,1745743627335,657.689635,0.00019301,2]
[359150636,1745743630796,-37.40850108,0.00019399,2]
[359150637,1745743659747,245.77,0.00018923,2]
[359150638,1745743708719,153.93,0.00018874,2]
[359150639,1745743726983,942.610365,0.00018,2]
[359150640,1745743727009,2000.0,0.00018,2]
[359150641,1745743727031,754.04927825,0.00018,2]
[359150654,1745743794793,246.0,0.00036986,60]
[359150655,1745743831918,-257.73,0.00019451,2]
[359150656,1745743831927,-200.0,0.00019475,2]
[359150657,1745743831936,-115.16237776,0.0001949,2]
[359150658,1745743832027,-84.83762224,0.0001949,2]
[359150659,1745743832037,-1200.0,0.00019499,2]
[359150660,1745743832046,-300.0,0.00019499,2]
[359150661,1745743832055,-200.0,0.00019499,2]
[359150662,1745743832065,-17118.0,0.000195,2]
[359150663,1745743832075,-207.4,0.00019587,2]
[359150664,1745743832084,-6633.02406643,0.00019589,2]
[359150665,1745743832095,-400.0,0.00019599,2]
[359150666,1745743832104,-523.95410247,0.00019599,2]
[359150667,1745743832113,-400.0,0.00019599,2]
[359150668,1745743832122,-400.0,0.00019599,2]
[359150669,1745743832131,-400.0,0.00019599,2]
[359150670,1745743832140,-400.0,0.00019599,2]
[359150671,1745743832150,-412.22,0.00019599,2]
[359150672,1745743832160,-400.0,0.00019599,2]
[359150673,1745743832169,-386.75715143,0.00019599,2]
[359150674,1745743832180,-400.0,0.00019599,2]
[359150675,1745743832190,-400.0,0.00019599,2]
[359150676,1745743832199,-409.06,0.00019599,2]
[359150677,1745743832208,-400.0,0.00019599,2]
[359150678,1745743832217,-400.0,0.00019599,2]
[359150679,1745743832228,-400.0,0.00019599,2]
[359150680,1745743832239,-448.19,0.00019599,2]
[359150681,1745743832249,-400.0,0.00019599,2]
[359150682,1745743832258,-403.49243909,0.00019599,2]
[359150683,1745743832269,-413.52977537,0.00019599,2]
[359150684,1745743832281,-400.0,0.00019599,2]
[359150685,1745743832291,-400.0,0.00019599,2]
[359150686,1745743832301,-400.0,0.00019599,2]
[359150687,1745743832311,-400.0,0.00019599,2]
[359150688,1745743832322,-404.60352701,0.00019599,2]
[359150689,1745743832331,-400.0,0.00019599,2]
[359150690,1745743832341,-400.0,0.00019599,2]
[359150692,1745743832349,-400.0,0.00019599,2]
[359150693,1745743832359,-402.66094512,0.00019599,2]
[359150694,1745743832368,-400.0,0.00019599,2]
[359150695,1745743832377,-400.0,0.00019599,2]
[359150696,1745743832387,-400.0,0.00019599,2]
[359150697,1745743832397,-505.39,0.00019599,2]
[359150699,1745743832407,-400.0,0.00019599,2]
[359150700,1745743832416,-400.0,0.00019599,2]
[359150701,1745743832425,-400.0,0.00019599,2]
[359150702,1745743832435,-400.0,0.00019599,2]
[359150703,1745743832446,-400.0,0.00019599,2]
[359150704,1745743832455,-400.0,0.00019599,2]
[359150705,1745743832466,-400.0,0.00019599,2]
[359150706,1745743832475,-400.0,0.00019599,2]
[359150707,1745743832484,-287.43704884,0.00019599,2]
[359150708,1745743832494,-208.50256609,0.00019599,2]
[359150709,1745743832503,-400.0,0.00019599,2]
[359150710,1745743832513,-400.0,0.00019599,2]
[359150711,1745743832522,-400.0,0.00019599,2]
[359150712,1745743832532,-400.0,0.00019599,2]
[359150713,1745743832543,-400.0,0.00019599,2]
[359150714,1745743832552,-400.0,0.00019599,2]
[359150715,1745743832562,-1919.5,0.00019599,2]
[359150716,1745743832572,-414.15988005,0.00019599,2]
[359150717,1745743832582,-400.0,0.00019599,2]
[359150718,1745743832591,-400.0,0.00019599,2]
[359150719,1745743832601,-414.15,0.00019599,2]
[359150720,1745743832611,-400.31,0.00019599,2]
[359150721,1745743832621,-400.0,0.00019599,2]
[359150722,1745743832631,-415.25463481,0.00019599,2]
[359150723,1745743832641,-400.0,0.00019599,2]
[359150724,1745743832651,-535.45,0.00019599,2]
[359150725,1745743832661,-400.0,0.00019599,2]
[359150726,1745743832671,-405.26337636,0.00019599,2]
[359150727,1745743832681,-400.0,0.00019599,2]
[359150728,1745743832691,-400.0,0.00019599,2]
[359150729,1745743832700,-400.0,0.00019599,2]
[359150730,1745743832710,-400.0,0.00019599,2]
[359150731,1745743832721,-400.0,0.00019599,2]
[359150732,1745743832731,-400.0,0.00019599,2]
[359150733,1745743832740,-400.0,0.00019599,2]
[359150734,1745743832751,-400.0,0.00019599,2]
[359150735,1745743832762,-400.0,0.00019599,2]
[359150736,1745743832771,-400.0,0.00019599,2]
[359150737,1745743832780,-418.13,0.00019599,2]
[359150738,1745743832790,-400.0,0.00019599,2]
[359150739,1745743832799,-400.0,0.00019599,2]
[359150740,1745743832808,-400.0,0.00019599,2]
[359150741,1745743832818,-400.0,0.00019599,2]
[359150742,1745743832828,-400.0,0.00019599,2]
[359150743,1745743832838,-405.31,0.00019599,2]
[359150744,1745743832847,-400.0,0.00019599,2]
[359150745,1745743832857,-444.45008666,0.00019599,2]
[359150746,1745743832880,-485.0,0.00019599,2]
[359150747,1745743832895,-309.39991334,0.00019599,2]
[359150748,1745743832905,-1241.20008667,0.00019599,2]
[359150749,1745743832921,-470.69720462,0.00019599,2]
[359150751,1745743838028,-426.49270871,0.00019599,2]
[359150752,1745743838038,-21.39864128,0.00019599,2]
[359150753,1745743838133,-378.60135872,0.00019599,2]
[359150754,1745743838142,-121.39864128,0.00019599,2]
[359150755,1745743838187,-278.60135872,0.00019599,2]
[359150756,1745743838196,-528.67750588,0.00019599,2]
[359150757,1745743838205,-300.0,0.00019599,2]
[359150758,1745743838215,-400.0,0.00019599,2]
[359150759,1745743838224,-150.0,0.00019599,2]
[359150760,1745743838233,-150.0,0.00019599,2]
[359150761,1745743838243,-15.2216354,0.00019599,2]
[359150762,1745743838255,-384.7783646,0.00019599,2]
[359150763,1745743838264,-150.0,0.00019599,2]
[359150764,1745743838274,-400.0,0.00019599,2]
[359150765,1745743838284,-144.7264854,0.00019599,2]
[359150766,1745743838296,-5.2735146,0.00019599,2]
[359150767,1745743838305,-400.0,0.00019599,2]
[359150768,1745743838314,-400.0,0.00019599,2]
[359150769,1745743838324,-400.0,0.00019599,2]
[359150770,1745743838333,-400.0,0.00019599,2]
[359150771,1745743838342,-170.62648539,0.00019599,2]
[359150772,1745743838359,-229.37351461,0.00019599,2]
[359150773,1745743838368,-400.0,0.00019599,2]
[359150774,1745743838378,-400.0,0.00019599,2]
[359150775,1745743838387,-400.0,0.00019599,2]
[359150776,1745743838396,-400.0,0.00019599,2]
[359150778,1745743838406,-400.0,0.00019599,2]
[359150780,1745743838415,-400.0,0.00019599,2]
[359150782,1745743838425,-75.18648539,0.00019599,2]
[359150887,1745743840339,-324.81351461,0.00019599,2]
[359150888,1745743840349,-311.22899679,0.00019599,2]
[359150889,1745743840360,-88.77100321,0.00019599,2]
[359150890,1745743840370,-375.26295679,0.00019599,2]
[359150891,1745743840485,-51.52704321,0.00019599,2]
[359150892,1745743840495,-482.23,0.00019599,2]
[359150893,1745743840504,-254.96713319,0.00019599,2]
[359150894,1745743840734,-268.10286681,0.00019599,2]
[359150895,1745743840744,-293.03,0.00019599,2]
[359150896,1745743840753,-400.0,0.00019599,2]
[359150897,1745743840762,-439.43733849,0.00019599,2]
[359150899,1745743840771,-187.30421117,0.00019599,2]
[359150924,1745743843136,-212.69578883,0.00019599,2]
[359150925,1745743843146,-400.0,0.00019599,2]
[359150926,1745743843155,-400.0,0.00019599,2]
[359150927,1745743843165,-500.0,0.00019599,2]
[359150928,1745743843174,-400.0,0.00019599,2]
[359150929,1745743843183,-400.0,0.00019599,2]
[359150930,1745743843192,-400.0,0.00019599,2]
[359150931,1745743843201,-500.0,0.00019599,2]
[359150932,1745743843211,-150.0,0.00019599,2]
[359150933,1745743843220,-150.0,0.00019599,2]
[359150934,1745743843230,-112.50421117,0.00019626,2]
[359150935,1745743843333,-37.49578883,0.00019626,2]
[359150936,1745743843343,-200.0,0.00019654,2]
[359150937,1745743843352,-400.0,0.00019722,2]
[359150938,1745743843361,-400.0,0.00019722,2]
[359150939,1745743843371,-150.0,0.00019796,2]
[359150940,1745743843380,-389.5860771,0.00019799,2]
[359150941,1745743843390,-3801.03,0.00019854,2]
[359150942,1745743843399,-203.849,0.00019854,2]
[359150943,1745743843408,-400.0,0.00019873,2]
[359150944,1745743843418,-400.0,0.00019873,2]
[359150945,1745743843427,-400.0,0.00019873,2]
[359150946,1745743843436,-400.0,0.00019873,2]
[359150948,1745743843446,-412.22,0.00019873,2]
[359150950,1745743843455,-400.0,0.00019873,2]
[359150952,1745743843464,-400.0,0.00019873,2]
[359150954,1745743843473,-409.06,0.00019873,2]
[359150955,1745743843482,-400.0,0.00019873,2]
[359150956,1745743843492,-400.0,0.00019873,2]
[359150957,1745743843501,-448.19,0.00019873,2]
[359150958,1745743843511,-400.0,0.00019873,2]
[359150959,1745743843521,-400.0,0.00019873,2]
[359150960,1745743843530,-400.0,0.00019873,2]
[359150961,1745743843540,-400.0,0.00019873,2]
[359150962,1745743843549,-400.0,0.00019873,2]
[359150964,1745743843558,-400.0,0.00019873,2]
[359150965,1745743843567,-505.39,0.00019873,2]
[359150967,1745743843577,-400.0,0.00019873,2]
[359150969,1745743843587,-400.0,0.00019873,2]
[359150971,1745743843596,-400.0,0.00019873,2]
[359150973,1745743843605,-400.0,0.00019873,2]
[359150975,1745743843614,-400.0,0.00019873,2]
[359150976,1745743843624,-400.0,0.00019873,2]
[359150978,1745743843634,-400.0,0.00019873,2]
[359150980,1745743843643,-400.0,0.00019873,2]
[359150982,1745743843653,-1919.5,0.00019873,2]
[359150984,1745743843662,-400.0,0.00019873,2]
[359150986,1745743843672,-400.0,0.00019873,2]
[359150988,1745743843682,-414.15,0.00019873,2]
[359150989,1745743843706,-400.31,0.00019873,2]
[359150991,1745743843716,-400.0,0.00019873,2]
[359150992,1745743843725,-535.45,0.00019873,2]
[359150993,1745743843735,-400.0,0.00019873,2]
[359150994,1745743843745,-400.0,0.00019873,2]
[359150995,1745743843754,-400.0,0.00019873,2]
[359150996,1745743843764,-400.0,0.00019873,2]
[359150997,1745743843773,-400.0,0.00019873,2]
[359150998,1745743843783,-204.69039359,0.00019873,2]
[359150999,1745743843793,-400.0,0.00019873,2]
[359151000,1745743843802,-400.0,0.00019873,2]
[359151001,1745743843811,-400.0,0.00019873,2]
[359151002,1745743843820,-418.13,0.00019873,2]
[359151003,1745743843830,-400.0,0.00019873,2]
[359151004,1745743843839,-400.0,0.00019873,2]
[359151005,1745743843849,-442.02954114,0.00019873,2]
[359151006,1745743843858,-400.0,0.00019873,2]
[359151007,1745743843867,-405.31,0.00019873,2]
[359151008,1745743843876,-400.0,0.00019873,2]
[359151009,1745743843885,-1238.85,0.00019873,2]
[359151010,1745743843895,-2138.39,0.00019873,2]
[359151011,1745743843904,-400.0,0.00019873,2]
[359151012,1745743843914,-300.0,0.00019873,2]
[359151013,1745743843924,-400.0,0.00019873,2]
[359151014,1745743843936,-400.0,0.00019873,2]
[359151015,1745743843947,-400.0,0.00019873,2]
[359151016,1745743843960,-400.0,0.00019873,2]
[359151017,1745743843970,-400.0,0.00019873,2]
[359151018,1745743843979,-400.0,0.00019873,2]
[359151019,1745743843989,-400.0,0.00019873,2]
[359151020,1745743843999,-400.0,0.00019873,2]
[359151021,1745743844008,-500.0,0.00019873,2]
[359151022,1745743844018,-400.0,0.00019873,2]
[359151023,1745743844029,-400.0,0.00019873,2]
[359151024,1745743844039,-400.0,0.00019873,2]
[359151025,1745743844050,-400.0,0.00019873,2]
[359151026,1745743844059,-400.0,0.00019873,2]
[359151027,1745743844069,-426.79,0.00019873,2]
[359151028,1745743844079,-482.23,0.00019873,2]
[359151029,1745743844088,-523.07,0.00019873,2]
[359151030,1745743844098,-400.0,0.00019873,2]
[359151031,1745743844107,-400.0,0.00019873,2]
[359151032,1745743844117,-400.0,0.00019873,2]
[359151033,1745743844126,-400.0,0.00019873,2]
[359151034,1745743844135,-400.0,0.00019873,2]
[359151035,1745743844145,-400.0,0.00019873,2]
[359151036,1745743844154,-650.55335423,0.00019883,2]
[359151037,1745743844164,-169.82928594,0.00019884,2]
[359151038,1745743844173,-774.3907,0.00019884,2]
[359151039,1745743844183,-169.82928594,0.00019892,2]
[359151040,1745743844192,-150.0,0.00019899,2]
[359151041,1745743844202,-1507.22965481,0.000199,2]
[359151042,1745743844211,-2128.76930663,0.000199,2]
[359151043,1745743844221,-200.0,0.000199,2]
[359151044,1745743844231,-532.96267882,0.000199,2]
[359151045,1745743844239,-174.52614189,0.000199,2]
[359151046,1745743844249,-169.82928594,0.000199,2]
[359151047,1745743844259,-408.99587541,0.000199,2]
[359151048,1745743844268,-679.27972419,0.000199,2]
[359151049,1745743844278,-1002.2622959,0.000199,2]
[359151050,1745743844287,-406.44265426,0.000199,2]
[359151051,1745743844296,-920.0,0.00019919,2]
[359151052,1745743844306,-1335.0,0.00019919,2]
[359151053,1745743844315,-796.0,0.00019919,2]
[359151054,1745743844325,-1287.0,0.00019919,2]
[359151055,1745743844334,-548.0,0.00019919,2]
[359151056,1745743844344,-2064.0,0.00019919,2]
[359151057,1745743844353,-912.0,0.00019919,2]
[359151058,1745743844363,-579.0,0.00019919,2]
[359151059,1745743844372,-1447.0,0.00019919,2]
[359151060,1745743844381,-877.0,0.00019919,2]
[359151061,1745743844390,-3994.0,0.00019919,2]
[359151062,1745743844400,-153.0,0.00019919,2]
[359151063,1745743844410,-6196.0,0.00019919,2]
[359151064,1745743844419,-500.87743933,0.00019973,2]
[359151065,1745743844429,-501.29544339,0.00019973,2]
[359151066,1745743844438,-630.95827983,0.00019973,2]
[359151067,1745743844447,-500.0,0.00019973,2]
[359151068,1745743844457,-500.0,0.00019973,2]
[359151069,1745743844467,-500.99256753,0.00019973,2]
[359151070,1745743844477,-500.0,0.00019973,2]
[359151071,1745743844486,-505.70243868,0.00019973,2]
[359151072,1745743844497,-311.5,0.00019973,2]
[359151073,1745743844508,-191.49777687,0.00019982,2]
[359151074,1745743844517,-201.08970887,0.00019982,2]
[359151075,1745743844526,-172.31119859,0.00019982,2]
[359151076,1745743844535,-206.80935879,0.00019982,2]
[359151077,1745743844545,-163.71782981,0.00019982,2]
[359151078,1745743844555,-400.0,0.00019982,2]
[359151079,1745743844564,-400.0,0.00019982,2]
[359151080,1745743844574,-400.0,0.00019982,2]
[359151081,1745743844584,-400.0,0.00019982,2]
[359151082,1745743844594,-400.0,0.00019982,2]
[359151083,1745743844605,-400.0,0.00019982,2]
[359151084,1745743844615,-400.0,0.00019982,2]
[359151085,1745743844624,-400.0,0.00019982,2]
[359151086,1745743844635,-400.0,0.00019982,2]
[359151087,1745743844644,-3331.62,0.00019982,2]
[359151088,1745743844654,-400.0,0.00019982,2]
[359151089,1745743844664,-400.0,0.00019982,2]
[359151090,1745743844673,-400.0,0.00019982,2]
[359151091,1745743844683,-475.75,0.00019982,2]
[359151092,1745743844692,-523.16796428,0.00019982,2]
[359151093,1745743844702,-400.0,0.00019982,2]
[359151094,1745743844711,-400.0,0.00019982,2]
[359151095,1745743844721,-400.0,0.00019982,2]
[359151096,1745743844731,-400.0,0.00019982,2]
[359151097,1745743844740,-400.0,0.00019982,2]
[359151098,1745743844749,-226.20042071,0.00019982,2]
[359151099,1745743844759,-7030.35537553,0.00019983,2]
[359151100,1745743844793,-764.34008831,0.00019983,2]
[359151102,1745743846104,-1711.58496145,0.00019983,2]
[359151103,1745743846369,-9391.2,0.00019983,2]
[359151140,1745743901795,1245.95072175,0.00019018,2]
[359151141,1745743901824,2000.0,0.00019018,2]
[359151142,1745743901850,2000.0,0.00019018,2]
[359151143,1745743901877,2000.0,0.00019018,2]
[359151144,1745743901906,540.29927825,0.00019018,2]
[359151146,1745744009379,1459.70072175,0.00019178,2]
[359151147,1745744009400,1804.12927825,0.00019178,2]
[359151148,1745744023094,1000.0,0.000369,60]
[359151149,1745744045347,1000.0,0.000369,60]
[359151151,1745744091051,628.0,0.0003698,60]
[359151154,1745744259489,195.87072175,0.00017,2]
[359151155,1745744259512,54.12927825,0.00017,2]
[359151156,1745744260563,300.0,0.00019,2]
[359151157,1745744269321,1000.0,0.00018996,2]
[359151158,1745744349011,171.75,0.00015193,2]
[359151159,1745744400292,396.11,0.00017073,2]
[359151160,1745744403309,-188.75336413,0.00019337,2]
[359151161,1745744408950,-159.075377,0.00019337,2]
[359151162,1745744413826,-48.28125887,0.00019337,2]
[359151163,1745744439069,78.01072175,0.00018986,2]
[359151164,1745744439090,2000.0,0.00018986,2]
[359151165,1745744439111,2000.0,0.00018986,2]
[359151166,1745744439132,2000.0,0.00018986,2]
[359151167,1745744439154,2000.0,0.00018986,2]
[359151168,1745744439182,4991.08927825,0.00018986,2]
[359151169,1745744441597,740.26684788,0.00036986,60]
[359151170,1745744726059,153.93,0.00018966,2]
[359151171,1745745032219,-536.189266,0.00019552,2]
[359151172,1745745032230,-183.850734,0.0001965,2]
[359151173,1745745032243,-16.149266,0.0001965,2]
[359151174,1745745032252,-200.0,0.00019675,2]
[359151175,1745745032262,-200.0,0.00019757,2]
[359151176,1745745032271,-370.1067732,0.00019799,2]
[359151177,1745745032281,-300.0,0.0001986,2]
[359151178,1745745032290,-1200.0,0.0001986,2]
[359151179,1745745032300,-920.0,0.00019861,2]
[359151180,1745745032310,-796.0,0.00019861,2]
[359151181,1745745032319,-1287.0,0.00019861,2]
[359151182,1745745032328,-21.71851744,0.00019861,2]
[359151183,1745745032352,-888.28148256,0.00019861,2]
[359151184,1745745032361,-1447.0,0.00019861,2]
[359151185,1745745032371,-548.0,0.00019861,2]
[359151186,1745745032380,-579.0,0.00019861,2]
[359151187,1745745032389,-2062.0,0.00019861,2]
[359151188,1745745032398,-1135.0,0.00019861,2]